{"text_format":"3","workbook":"xlsx","n_sheets":2,"sheets":["Exhibit A","List of Bus_Fleet Vehicles"],"not_rendered":{"defined_names":3},"read":"whole","date_system":"1900"}

{"sheet":"Exhibit A","index":0,"n_rows":172,"n_cols":9,"rows_kept":172,"merged":[[0,0,0,8],[1,0,1,8],[2,0,2,8],[4,3,4,6],[6,0,7,0],[6,1,8,3],[6,4,8,6],[6,7,9,7],[172,0,172,8]]}
["Request for Bids - Bus and Fleet Vehicle Parts"]
["RFB0423BFVPARTS"]
["Exhibit A"]
[]
[null,null,"Vendor Name:"]
[]
["Instructions: Complete all yellow fields","Requested Manufacturer/Parts",null,null,"Substitution Manufacturer/Parts",null,null,"Delivery/Shipping to:\nTransportation\n17146 Manchester Road\nWildwood, MO 63040"]
[]
[]
["Part Name","Manufacturer","Part Number","Unit Price","Manufacturer","Part Number","Unit Price",null,"Subtotal"]
["Bus 8-Way Lens, Amber","Navistar","2509309C1",{"$nulls":5},{"$f":"IF(SUM(D11,G11,H11)=0,\" \",SUM(D11,G11,H11))","v":" "}]
["Bus 8-Way Lens, Red","Navistar","2509312C1",{"$nulls":5},{"$f":"IF(SUM(D12,G12,H12)=0,\" \",SUM(D12,G12,H12))","v":" "}]
["Bus 8-Way, 7\" Amber","Navistar","WEL1080110020",{"$nulls":5}," "]
["Bus 8-Way, 7\" Red","Navistar","WEL1080110010",{"$nulls":5}," "]
["Bus A/C Belt","Duralast","615K6",{"$nulls":5}," "]
["Bus Air Filter","Fleetguard","AF25188",{"$nulls":5}," "]
["Bus Air Filter","Luberfiner","LAF6902",{"$nulls":5}," "]
["Bus Alternator","Leece-Neville","LNA160203",{"$nulls":5}," "]
["Bus Backup Light 5.25\"","Navistar",421520001,{"$nulls":5}," "]
["Bus Battery Group 31 - 750cc",{"$nulls":7}," "]
["Bus Battery Group 65",{"$nulls":7}," "]
["Bus Bearing Front Inner","Meritor NA","HM212049-NA",{"$nulls":5}," "]
["Bus Bearing Front Outer","Meritor NA","3782-NA",{"$nulls":5}," "]
["Bus Bearing Race Front Inner","Meritor NA","HM212011-NA",{"$nulls":5}," "]
["Bus Bearing Race Front Outer","Meritor NA","3720-NA",{"$nulls":5}," "]
["Bus Belt Tensioner","Cummins",5270678,{"$nulls":5}," "]
["Bus Belt Tensioner","Gates",38702,{"$nulls":5}," "]
["Bus Brake Assist Motor","Blue Bird",8305195,{"$nulls":5}," "]
["Bus Brake Light Lens, 7\"","Navistar",1003000010,{"$nulls":5}," "]
["Bus Brake Light, 7\"","Navistar",1010112010,{"$nulls":5}," "]
["Bus Brake Master Cylinder","Bendix","012379",{"$nulls":5}," "]
["Bus Brake Pads","Fras-le","ESD769",{"$nulls":5}," "]
["Bus Brake Pads ","Duralast","DG1328",{"$nulls":5}," "]
["Bus Brake Pads ","Duralast","DG1330",{"$nulls":5}," "]
["Bus Brake Rotor Front","Navistar PFC","PFH39008620",{"$nulls":5}," "]
["Bus Brake Rotor Rear","Navistar PFC","PFH39019320",{"$nulls":5}," "]
["Bus Breather Filter","Fleetguard","CV52001",{"$nulls":5}," "]
["Bus Caliper",null,"6108A-HWD",{"$nulls":5}," "]
["Bus Caliper",null,"6109A-HWD",{"$nulls":5}," "]
["Bus Clip Light, Amber","Blue Bird",10004272,{"$nulls":5}," "]
["Bus Clip Light, Red","Blue Bird",10004273,{"$nulls":5}," "]
["Bus Coolant Temp Sensor","Cummins",4954905,{"$nulls":5}," "]
["Bus Cross View Mirror Base, Driver","Blue Bird",113315,{"$nulls":5}," "]
["Bus Cross View Mirror Base, Passenger","Blue Bird",113314,{"$nulls":5}," "]
["Bus Crossing Arm Motor",null,"SMC7014K",{"$nulls":5}," "]
["Bus Crossing Arm Polyrod ",null,10049846,{"$nulls":5}," "]
["Bus Crossing Arm Polyrod 70\" ","Blue Bird",10001565,{"$nulls":5}," "]
["Bus Crossview Mirror","Rosco","5360H",{"$nulls":5}," "]
["Bus Differential Pressure Sensor","Dorman","904-7127",{"$nulls":5}," "]
["Bus Differential Pressure Sensor","Cummins",2871960,{"$nulls":5}," "]
["Bus Doser Injector","Cummins",2888173,{"$nulls":5}," "]
["Bus DPF Temperature Sensor","Cummins",4384812,{"$nulls":5}," "]
["Bus Driver Heater Valve","Bergstrom",871288,{"$nulls":5}," "]
["Bus Driver's Interior Mirror","Rosco","630BBOF",{"$nulls":5}," "]
["Bus EC Crossing Arm Polyrod",null,"SMC68150",{"$nulls":5}," "]
["Bus Exhaust Band Clamp, 4\"",null,95400,{"$nulls":5}," "]
["Bus External Trans Filter","Allison",29539579,{"$nulls":5}," "]
["Bus Front Shock","Navistar","AMS65162",{"$nulls":5}," "]
["Bus Fuel Filter","Fleetguard","FF5632",{"$nulls":5}," "]
["Bus Fuel Filter","Fleetguard","FF63009",{"$nulls":5}," "]
["Bus Fuel Strainer","Fleetguard","FS19551",{"$nulls":5}," "]
["Bus Fuel Strainer","Fleetguard","FS36215",{"$nulls":5}," "]
["Bus Headlight Bulb",null,9007,{"$nulls":5}," "]
["Bus Horn Contact","Blue Bird","K034343",{"$nulls":5}," "]
["Bus Hubcap","SKF",1612,{"$nulls":5}," "]
["Bus Hydrobooster","Bendix",204032498,{"$nulls":5}," "]
["Bus Idler Pulley","Cummins",4991240,{"$nulls":5}," "]
["Bus Internal Trans Filter","NAPA",400057,{"$nulls":5}," "]
["Bus Loading Door Motor","Navistar","2614984C91",{"$nulls":5}," "]
["Bus Nitrogen Oxide (NOx) Downstream Sensor","Cummins",4326872,{"$nulls":5}," "]
["Bus Nitrogen Oxide (NOx) Upstream Sensor","Cummins",5295473,{"$nulls":5}," "]
["Bus Oil Filler Cap","Cummins",3973511,{"$nulls":5}," "]
["Bus Oil Filter","Fleetguard","LF3970",{"$nulls":5}," "]
["Bus Power Steering Filter All-American","Navistar","1695528C1",{"$nulls":5}," "]
["Bus Power Steering Filter Conventional","Fleetguard","870807A",{"$nulls":5}," "]
["Bus Rear Bearing Inner",null,"594A-NA",{"$nulls":5},{"$f":"IF(SUM(D76,G76,H76)=0,\" \",SUM(D76,G76,H76))","v":" "}]
["Bus Rear Bearing Outer",null,"580-NA",{"$nulls":5}," "]
["Bus Rear Race Inner",null,"592A-NA",{"$nulls":5}," "]
["Bus Rear Race Outer",null,"572-NA",{"$nulls":5}," "]
["Bus SCR Exhaust Gas Temperature Sensor","Cummins",4384811,{"$nulls":5}," "]
["Bus Serpentine Belt","ACDelco","8K991",{"$nulls":5}," "]
["Bus Serpentine Belt","Duralast","795K8",{"$nulls":5}," "]
["Bus Serpentine Belt","NAPA",25080797,{"$nulls":5}," "]
["Bus Starter","Denso","428000-5120",{"$nulls":5}," "]
["Bus Stop and Tail Lamp, 4\"","Navistar","ZBJD50852",{"$nulls":5}," "]
["Bus Stop Arm Clutch","Specialty","SMC5003",{"$nulls":5}," "]
["Bus Stop Arm LED Light Kit","Sound Off","ECVR12SAK",{"$nulls":5}," "]
["Bus Stop Arm Module",null,"SMC710207K",{"$nulls":5}," "]
["Bus Stoplight Switch","Bendix",5006950,{"$nulls":5}," "]
["Bus Sun Visor",null,"8637BB13",{"$nulls":5}," "]
["Bus Tube Fuel Supply","Cummins",5300565,{"$nulls":5}," "]
["Bus Tube Fuel Supply","Cummins",5300566,{"$nulls":5}," "]
["Bus Turn Signal Lens, 7\"","Blue Bird",10048725,{"$nulls":5}," "]
["Bus Turn Signal Switch","Blue Bird","K034338",{"$nulls":5}," "]
["Bus Turn Signal, 7\"","Navistar",1010110020,{"$nulls":5}," "]
["Bus Urea Filter","Cummins","UF101",{"$nulls":5}," "]
["Bus VGT Actuator","Cummins","5601240NX",{"$nulls":5}," "]
["Bus Wheel Seal, Front","Scotseal",35066,{"$nulls":5}," "]
["Bus Wheel Seal, Rear","Scotseal",47697,{"$nulls":5}," "]
["Bus Wiper Blade, 18\"",{"$nulls":7}," "]
["Fleet A/C Hose","Murray",56698,{"$nulls":5}," "]
["Fleet A/C Pressure Switch","Santech","MT1197",{"$nulls":5}," "]
["Fleet Alternator","Duralast","DL3512-18",{"$nulls":5}," "]
["Fleet Alternator","Duralast","DL3668-8-11",{"$nulls":5}," "]
["Fleet Alternator","NAPA",2139234,{"$nulls":5}," "]
["Fleet Axle Shaft","Spicer",10013778,{"$nulls":5}," "]
["Fleet Axle U-Joint","NAPA","P374",{"$nulls":5}," "]
["Fleet Ball Joint","NAPA",10339,{"$nulls":5}," "]
["Fleet Ball Joint","NAPA",104149,{"$nulls":5}," "]
["Fleet Belt Tensioner","Gates",39051,{"$nulls":5}," "]
["Fleet Brake Drum","Duralast",8989,{"$nulls":5}," "]
["Fleet Brake Pads","Duralast","DG1045",{"$nulls":5}," "]
["Fleet Brake Pads","Duralast","DG1046",{"$nulls":5}," "]
["Fleet Brake Pads","Fleet","FT-7974",{"$nulls":5}," "]
["Fleet Brake Pads","NAPA","SS-8909M",{"$nulls":5}," "]
["Fleet Brake Pads","NAPA","UP-7654M",{"$nulls":5}," "]
["Fleet Brake Shoes","Duralast","704CP",{"$nulls":5}," "]
["Fleet Coolant Temperature Sensor","Echlin Ignition","TS7252",{"$nulls":5}," "]
["Fleet EGR Cooler","NAPA","600-3561",{"$nulls":5}," "]
["Fleet EGR Valve","NAPA","2-26690",{"$nulls":5}," "]
["Fleet Fuel Filter","Fleetguard","FK22004",{"$nulls":5}," "]
["Fleet Fuel Filter","Fleetguard","FK48002",{"$nulls":5}," "]
["Fleet Fuel Filter","NAPA",3252,{"$nulls":5}," "]
["Fleet Fuel Filter","NAPA",3528,{"$nulls":5}," "]
["Fleet Fuel Filter","NAPA",3604,{"$nulls":5}," "]
["Fleet Fuel Filter","NAPA",3899,{"$nulls":5}," "]
["Fleet Fuel Filter ","Valucraft","V686",{"$nulls":5}," "]
["Fleet Fuel Pump","Delphi","CFG1197",{"$nulls":5}," "]
["Fleet Fuel Pump","Precision","A30138",{"$nulls":5}," "]
["Fleet Fuel Pump","Precision","A43029",{"$nulls":5}," "]
["Fleet Fuel Pump Driver Module","Dorman","590-001",{"$nulls":5}," "]
["Fleet Glow Plug Harness","Dorman","904-249",{"$nulls":5}," "]
["Fleet Glow Plug Harness","Dorman","904-453",{"$nulls":5}," "]
["Fleet Headlight",null,9007,{"$nulls":5}," "]
["Fleet Headlight",null,"H6054",{"$nulls":5}," "]
["Fleet HVAC Blend Door Actuator","Dorman","604-202",{"$nulls":5}," "]
["Fleet Idler Pulley","Duralast",231157,{"$nulls":5}," "]
["Fleet Master Cylinder","Duralast","NM4059",{"$nulls":5}," "]
["Fleet Master Cylinder","NAPA","M3487",{"$nulls":5}," "]
["Fleet Oil Filter","Fleetguard","LF16166",{"$nulls":5},{"$f":"IF(SUM(D140,G140,H140)=0,\" \",SUM(D140,G140,H140))","v":" "}]
["Fleet Oil Filter","Fleetguard","LF16231",{"$nulls":5}," "]
["Fleet Oil Filter","Fleetguard","LF17494",{"$nulls":5}," "]
["Fleet Oil Filter","Fleetguard","LF3692",{"$nulls":5}," "]
["Fleet Oil Filter","NAPA",2100010,{"$nulls":5}," "]
["Fleet Oil Filter","NAPA","21372MP",{"$nulls":5}," "]
["Fleet Oil Filter","NAPA","27060MP",{"$nulls":5}," "]
["Fleet Oil Filter","NAPA",27151,{"$nulls":5}," "]
["Fleet Oil Filter","NAPA",27311,{"$nulls":5}," "]
["Fleet Oil Filter","NAPA",27312,{"$nulls":5}," "]
["Fleet Oil Filter","NAPA","27502MP",{"$nulls":5}," "]
["Fleet Power Steering Pump","Duralast","63159A2N",{"$nulls":5}," "]
["Fleet Power Steering Pump","NAPA","38-5048",{"$nulls":5}," "]
["Fleet Radiator","Duralast","C2977",{"$nulls":5}," "]
["Fleet Radiator","Spectra Premium","CU13022",{"$nulls":5}," "]
["Fleet Radiator",null,434080,{"$nulls":5}," "]
["Fleet Serpentine Belt","Continental",4080865,{"$nulls":5}," "]
["Fleet Serpentine Belt","Dayco",5081260,{"$nulls":5}," "]
["Fleet Transmission",null,"T162208",{"$nulls":5}," "]
["Fleet Transmission",null,"T162471",{"$nulls":5}," "]
["Fleet Transmission",null,"T162622",{"$nulls":5}," "]
["Fleet Transmission Cooler","Dorman","918-211",{"$nulls":5}," "]
["Fleet Transmission Filter","Premium Guard","PT1301:P",{"$nulls":5}," "]
["Fleet Water Pump","Gates","41507E",{"$nulls":5}," "]
["Fleet Water Pump","Valucraft","BVC-9097",{"$nulls":5}," "]
["Fleet Wheel Bearing","Duralast","DL515081",{"$nulls":5}," "]
["Fleet Wiper Blade, 18\"",{"$nulls":7}," "]
["Fleet Wiper Blade, 20\"",{"$nulls":7}," "]
["Fleet Wiper Blade, 22\"",{"$nulls":7}," "]
["Fleet Wiper Blade, 24\"",{"$nulls":7}," "]
["Fleet Wiper Blade, 26\"",{"$nulls":7}," "]
["Fleet Wiper Blade, 28\"",{"$nulls":7}," "]
["Totals",null,null,{"$f":"IF(SUM(D11:D171)=0,\" \",SUM(D11:D171))","v":" "},null,null,{"$f":"IF(SUM(G11:G171)=0,\" \",SUM(G11:G171))","v":" "},{"$f":"IF(SUM(H11:H171)=0,\" \",SUM(H11:H171))","v":" "},{"$f":"IF(SUM(I11:I171)=0,\" \",SUM(I11:I171))","v":" "}]

{"sheet":"List of Bus_Fleet Vehicles","index":1,"n_rows":69,"n_cols":1,"rows_kept":69}
["List of Bus and Fleet Vehicles"]
["2000 Nissan Compact"]
["2002 Chevy Van"]
["2002 Ford Econoline Van"]
["2003 Chevy 3500 Van"]
["2003 Ford Econoline Van"]
["2003 GMC Pickup Truck"]
["2005 Chevy Malibu"]
["2005 Ford E-350 Econoline Van"]
["2005 Ford F-250 Pickup Truck"]
["2005 Ford F-450 Pickup Truck"]
["2005 Ford F-750 Truck"]
["2005 Ford Pickup Truck"]
["2006 Ford E-350 Econoline Van"]
["2006 Ford Pickup Truck"]
["2007 Ford F-350 Pickup Truck"]
["2007 Ford Pickup Truck"]
["2007 Ford Van"]
["2008 Ford E-350 Econoline Van"]
["2008 Ford Pickup Truck"]
["2008 Ford Ranger Pickup Truck"]
["2008 Saturn Aura XE"]
["2009 Ford E-350 Econoline Van"]
["2009 Ford F-350 Pickup Truck"]
["2010 Ford Pickup Truck"]
["2011 Chevrolet Van/Truck"]
["2011 Ford E-350 Van"]
["2011 Ford F-350 Pickup Truck"]
["2012 Bluebird Vision 6.7L Cummins Diesel"]
["2012 Ford E-350 Econoline Van"]
["2012 Ford Escape XLS 4WD"]
["2012 Ford F-550 Pickup Truck"]
["2013 Bluebird Vision 6.7L Cummins Diesel"]
["2014 Bluebird All American 6.7L Cummins Diesel"]
["2014 Ford E-350 Cargo Van"]
["2014 Ford F-150 XL Super Cab"]
["2014 Ford F-350 XL Regular Cab"]
["2014 Ford F-550 Cab & Chassis"]
["2015 Ford F-750 XL Cab & Chassis"]
["2016 Ford E-350 Cargo Van"]
["2016 Ford E-450 Starcraft Body 6.8L Ford Unleaded"]
["2016 Ford F-350 Truck"]
["2016 Ford F-550 Dump Truck 4WD"]
["2017 Bluebird All American 6.7L Cummins Diesel"]
["2017 Bluebird Vision 6.7L Cummins Diesel"]
["2017 Ford F-350 Truck"]
["2018 Ford E-350 Tranist Van"]
["2019 Ford F-150"]
["2019 Ford F-250"]
["2019 Ford F-350"]
["2019 Ford F-550"]
["2019 Ford Cargo Van"]
["2020 Bluebird Vision 6.8L Ford Unleaded"]
["2020 Ford E-250 Cargo Van"]
["2020 Ford F-150 Truck"]
["2020 Ford F-350 ruck"]
["2021 Dodge Durango"]
["2021 Ford E-350 Cargo Van"]
["2021 Ford F-250"]
["2021 Ford F-350"]
["2021 Ford F-750 Cab & Chassis"]
["2022 Bluebird Vision 7.3L Ford Unleaded"]
["2022 Chevrolet Silverado"]
["2022 Dodge Ram"]
["2022 Ford F-250 Truck"]
["2022 Ford E-250 Cargo Van"]
["2022 Ford E-350 Cargo Van"]
["2023 GMC Sierra"]
["2024 International CE 8.8L PSI Unleaded"]